[Event "*** Titled Tuesday Blitz"]
[Site "Chess.com"]
[Date "2020.11.03"]
[Round "1"]
[White "BilodeauA"]
[Black "geordie_derraugh"]
[Result "1-0"]
[WhiteElo "2878"]
[BlackElo "2449"]
[TimeControl "180+1"]
[EndTime "10:04:28 PST"]
[Termination "BilodeauA won by resignation"]

1. d4 {[%clk 0:03:00.9]} 1... Nf6 {[%clk 0:03:00]} 2. Nc3 {[%clk 0:03:01.6]}
2... e6 {[%clk 0:03:00.7]} 3. e4 {[%clk 0:02:59.1]} 3... d5 {[%clk 0:03:01.1]}
4. e5 {[%clk 0:02:58.5]} 4... Nfd7 {[%clk 0:03:01.3]} 5. f4 {[%clk 0:02:59.1]}
5... c5 {[%clk 0:03:01]} 6. Nf3 {[%clk 0:02:59.9]} 6... Nc6 {[%clk 0:03:01.1]}
7. Be3 {[%clk 0:03:00.7]} 7... cxd4 {[%clk 0:02:59.6]} 8. Nxd4 {[%clk
0:03:00.7]} 8... Bb4 {[%clk 0:02:57.5]} 9. Qd2 {[%clk 0:02:55.8]} 9... O-O
{[%clk 0:02:56.5]} 10. a3 {[%clk 0:02:52.2]} 10... Ba5 {[%clk 0:02:53.3]} 11.
Be2 {[%clk 0:02:52.5]} 11... Qe7 {[%clk 0:02:46]} 12. O-O {[%clk 0:02:51.5]}
12... f6 {[%clk 0:02:45.9]} 13. exf6 {[%clk 0:02:48.1]} 13... Nxf6 {[%clk
0:02:46.8]} 14. b4 {[%clk 0:02:45.5]} 14... Bb6 {[%clk 0:02:41.1]} 15. Rae1
{[%clk 0:02:44.5]} 15... Qf7 {[%clk 0:02:38.3]} 16. Bf3 {[%clk 0:02:39.1]} 16...
Bd7 {[%clk 0:02:38.4]} 17. Nce2 {[%clk 0:02:26.3]} 17... Rad8 {[%clk 0:02:20.6]}
18. Nxc6 {[%clk 0:02:26.3]} 18... Bxc6 {[%clk 0:02:08.6]} 19. Bxb6 {[%clk
0:02:26.2]} 19... axb6 {[%clk 0:02:07.8]} 20. Nd4 {[%clk 0:02:27]} 20... Ne4
{[%clk 0:02:02.3]} 21. Bxe4 {[%clk 0:02:24.6]} 21... dxe4 {[%clk 0:02:02.4]} 22.
c3 {[%clk 0:02:25.4]} 22... Bd5 {[%clk 0:01:54.4]} 23. Rc1 {[%clk 0:02:22.7]}
23... Rc8 {[%clk 0:01:53.4]} 24. Qe3 {[%clk 0:02:23]} 24... Rfd8 {[%clk
0:01:50.1]} 25. h3 {[%clk 0:02:23.1]} 25... Qd7 {[%clk 0:01:49.4]} 26. Rfe1
{[%clk 0:02:17.8]} 26... Qa4 {[%clk 0:01:48.7]} 27. c4 {[%clk 0:02:14.2]} 27...
Rxc4 {[%clk 0:01:36.7]} 28. Rxc4 {[%clk 0:02:14.1]} 28... Bxc4 {[%clk
0:01:37.2]} 29. Qxe4 {[%clk 0:02:14.5]} 29... Qxa3 {[%clk 0:01:17.4]} 30. Nxe6
{[%clk 0:02:11.2]} 30... Rc8 {[%clk 0:00:50.8]} 31. Qe5 {[%clk 0:02:11]} 1-0

[Event "*** Titled Tuesday Blitz"]
[Site "Chess.com"]
[Date "2020.11.03"]
[Round "1"]
[White "Chessdude1987"]
[Black "Harry_Rakkel"]
[Result "0-1"]
[WhiteElo "2313"]
[BlackElo "2638"]
[TimeControl "180+1"]
[EndTime "10:04:34 PST"]
[Termination "Harry_Rakkel won by checkmate"]

1. e4 {[%clk 0:03:00.5]} 1... c5 {[%clk 0:02:59.6]} 2. b3 {[%clk 0:02:59.9]}
2... b6 {[%clk 0:02:58.3]} 3. Bb2 {[%clk 0:02:58.4]} 3... Bb7 {[%clk 0:02:58.6]}
4. Nc3 {[%clk 0:02:58.5]} 4... Nc6 {[%clk 0:02:57.4]} 5. f4 {[%clk 0:02:58.2]}
5... e6 {[%clk 0:02:54.9]} 6. Qf3 {[%clk 0:02:49.6]} 6... Nd4 {[%clk 0:02:49.5]}
7. Qd3 {[%clk 0:02:49.7]} 7... Ne7 {[%clk 0:02:44.8]} 8. Nf3 {[%clk 0:02:47.3]}
8... Nec6 {[%clk 0:02:40]} 9. O-O-O {[%clk 0:02:24.7]} 9... Be7 {[%clk
0:02:37.6]} 10. Nxd4 {[%clk 0:02:22.6]} 10... Nxd4 {[%clk 0:02:36.8]} 11. g4
{[%clk 0:02:14.2]} 11... O-O {[%clk 0:02:32.5]} 12. g5 {[%clk 0:02:11.9]} 12...
Qc7 {[%clk 0:02:29.1]} 13. Qg3 {[%clk 0:02:08.5]} 13... a5 {[%clk 0:02:12.4]}
14. Bg2 {[%clk 0:02:02.9]} 14... a4 {[%clk 0:02:08.1]} 15. Kb1 {[%clk
0:01:49.2]} 15... axb3 {[%clk 0:02:06.7]} 16. cxb3 {[%clk 0:01:46.7]} 16... b5
{[%clk 0:02:05.4]} 17. e5 {[%clk 0:01:43.5]} 17... Bxg2 {[%clk 0:01:59.8]} 18.
Qxg2 {[%clk 0:01:43.1]} 18... Qa5 {[%clk 0:01:59.3]} 19. h4 {[%clk 0:01:33.3]}
19... c4 {[%clk 0:01:58.3]} 20. Qe4 {[%clk 0:01:09.6]} 20... b4 {[%clk
0:01:54.7]} 21. Na4 {[%clk 0:01:07]} 21... cxb3 {[%clk 0:01:54]} 22. Qxd4 {[%clk
0:01:00]} 22... Qxa4 {[%clk 0:01:52.7]} 23. axb3 {[%clk 0:00:59.2]} 23... Qxb3
{[%clk 0:01:46.4]} 24. f5 {[%clk 0:00:57.7]} 24... Rfc8 {[%clk 0:01:44.4]} 25.
f6 {[%clk 0:00:48.3]} 25... Qa2# {[%clk 0:01:43.4]} 0-1

[Event "*** Titled Tuesday Blitz"]
[Site "Chess.com"]
[Date "2020.11.03"]
[Round "1"]
[White "brunomorado"]
[Black "GigaQuparadze"]
[Result "0-1"]
[WhiteElo "2440"]
[BlackElo "2868"]
[TimeControl "180+1"]
[EndTime "10:04:44 PST"]
[Termination "GigaQuparadze won by resignation"]

1. d4 {[%clk 0:03:00]} 1... Nf6 {[%clk 0:02:59]} 2. Nc3 {[%clk 0:03:00.1]} 2...
d5 {[%clk 0:02:58]} 3. Bg5 {[%clk 0:03:00.5]} 3... e6 {[%clk 0:02:55.3]} 4. e4
{[%clk 0:03:00.5]} 4... dxe4 {[%clk 0:02:55]} 5. Nxe4 {[%clk 0:03:01.4]} 5...
Nbd7 {[%clk 0:02:55.3]} 6. g3 {[%clk 0:03:00.8]} 6... Be7 {[%clk 0:02:55.1]} 7.
Bxf6 {[%clk 0:03:01.1]} 7... Nxf6 {[%clk 0:02:56]} 8. Bg2 {[%clk 0:03:01.6]}
8... Nxe4 {[%clk 0:02:55.5]} 9. Bxe4 {[%clk 0:03:02.5]} 9... c5 {[%clk
0:02:55.9]} 10. Ne2 {[%clk 0:03:02]} 10... cxd4 {[%clk 0:02:55.3]} 11. Qxd4
{[%clk 0:03:02.9]} 11... Qxd4 {[%clk 0:02:54.9]} 12. Nxd4 {[%clk 0:03:03]} 12...
Bf6 {[%clk 0:02:54.6]} 13. O-O-O {[%clk 0:03:02.9]} 13... Ke7 {[%clk 0:02:52.6]}
14. Rd2 {[%clk 0:02:50.2]} 14... Rb8 {[%clk 0:02:47.9]} 15. Rhd1 {[%clk
0:02:49.4]} 15... e5 {[%clk 0:02:39.9]} 16. Nf3 {[%clk 0:02:27]} 16... Bg4
{[%clk 0:02:36.1]} 17. h4 {[%clk 0:02:26]} 17... Rhc8 {[%clk 0:02:28.9]} 18. Re1
{[%clk 0:02:15.7]} 18... Kf8 {[%clk 0:02:25.9]} 19. Bd5 {[%clk 0:02:07.7]} 19...
Re8 {[%clk 0:02:20]} 20. Rd3 {[%clk 0:01:59]} 20... Re7 {[%clk 0:01:51.3]} 21.
Nd2 {[%clk 0:01:58.7]} 21... g6 {[%clk 0:01:47.4]} 22. Ne4 {[%clk 0:01:58.8]}
22... Bg7 {[%clk 0:01:47.6]} 23. Ng5 {[%clk 0:01:35.3]} 23... h6 {[%clk
0:01:46.5]} 24. Ne4 {[%clk 0:01:27.9]} 24... f5 {[%clk 0:01:43.4]} 25. Nc5
{[%clk 0:01:26.7]} 25... e4 {[%clk 0:01:42.7]} 26. Rb3 {[%clk 0:01:25.5]} 26...
Bd4 {[%clk 0:01:37.9]} 27. Ne6+ {[%clk 0:01:19.3]} 27... Rxe6 {[%clk 0:01:37.8]}
28. Bxe6 {[%clk 0:01:20.2]} 28... Bxf2 {[%clk 0:01:38.2]} 29. Rf1 {[%clk
0:01:19.4]} 29... e3 {[%clk 0:01:36.8]} 30. h5 {[%clk 0:01:16.2]} 30... e2
{[%clk 0:01:34.5]} 0-1

[Event "*** Titled Tuesday Blitz"]
[Site "Chess.com"]
[Date "2020.11.03"]
[Round "1"]
[White "Vasily85"]
[Black "Blitzstream"]
[Result "0-1"]
[WhiteElo "2394"]
[BlackElo "2785"]
[TimeControl "180+1"]
[EndTime "10:04:52 PST"]
[Termination "Blitzstream won by resignation"]

1. d4 {[%clk 0:03:00.5]} 1... d5 {[%clk 0:02:41.4]} 2. Bg5 {[%clk 0:03:00.3]}
2... c6 {[%clk 0:02:35.9]} 3. Nf3 {[%clk 0:02:54.3]} 3... Bf5 {[%clk 0:02:35.1]}
4. e3 {[%clk 0:02:53.5]} 4... Nd7 {[%clk 0:02:35.2]} 5. Bd3 {[%clk 0:02:53.1]}
5... Bxd3 {[%clk 0:02:33.2]} 6. Qxd3 {[%clk 0:02:54]} 6... Ngf6 {[%clk
0:02:33.5]} 7. O-O {[%clk 0:02:48.9]} 7... Qb6 {[%clk 0:02:32]} 8. Nbd2 {[%clk
0:02:43.6]} 8... e6 {[%clk 0:02:31.7]} 9. c4 {[%clk 0:02:38.7]} 9... h6 {[%clk
0:02:30]} 10. Bh4 {[%clk 0:02:36.5]} 10... Be7 {[%clk 0:02:26.5]} 11. b3 {[%clk
0:02:33.9]} 11... O-O {[%clk 0:02:26]} 12. e4 {[%clk 0:02:32.7]} 12... dxe4
{[%clk 0:02:26.1]} 13. Nxe4 {[%clk 0:02:33.6]} 13... Rfe8 {[%clk 0:02:24.9]} 14.
Rad1 {[%clk 0:02:29.7]} 14... Rad8 {[%clk 0:02:24.5]} 15. Rfe1 {[%clk
0:02:26.3]} 15... Nxe4 {[%clk 0:02:23.2]} 16. Qxe4 {[%clk 0:02:27.2]} 16... Bxh4
{[%clk 0:02:20.5]} 17. Qxh4 {[%clk 0:02:28.1]} 17... Nf6 {[%clk 0:02:14.9]} 18.
h3 {[%clk 0:02:20.1]} 18... Qa5 {[%clk 0:02:14.6]} 19. Re2 {[%clk 0:02:03.9]}
19... c5 {[%clk 0:02:02.3]} 20. Red2 {[%clk 0:01:54.4]} 20... cxd4 {[%clk
0:02:02.3]} 21. Nxd4 {[%clk 0:01:48.3]} 21... e5 {[%clk 0:01:59.3]} 22. Nf3
{[%clk 0:01:47.6]} 22... Rxd2 {[%clk 0:01:52.9]} 23. Rxd2 {[%clk 0:00:25.9]}
23... e4 {[%clk 0:01:51.2]} 0-1

[Event "*** Titled Tuesday Blitz"]
[Site "Chess.com"]
[Date "2020.11.03"]
[Round "1"]
[White "Ze-Pequeno"]
[Black "AmirBagheri78"]
[Result "0-1"]
[WhiteElo "2238"]
[BlackElo "2570"]
[TimeControl "180+1"]
[EndTime "10:04:53 PST"]
[Termination "AmirBagheri78 won by resignation"]

1. e4 {[%clk 0:03:00.7]} 1... c6 {[%clk 0:02:59.4]} 2. d4 {[%clk 0:03:00.2]}
2... d5 {[%clk 0:02:59.5]} 3. Nc3 {[%clk 0:03:01.1]} 3... dxe4 {[%clk
0:02:58.9]} 4. Nxe4 {[%clk 0:03:02]} 4... Bf5 {[%clk 0:02:58.9]} 5. Ng3 {[%clk
0:03:01.5]} 5... Nf6 {[%clk 0:02:59]} 6. Nf3 {[%clk 0:03:02.4]} 6... Bg4 {[%clk
0:02:57.9]} 7. c3 {[%clk 0:03:01.2]} 7... e6 {[%clk 0:02:57.7]} 8. Bd3 {[%clk
0:02:58.2]} 8... Qd5 {[%clk 0:02:56]} 9. Be2 {[%clk 0:02:55.5]} 9... Nbd7 {[%clk
0:02:46.5]} 10. h3 {[%clk 0:02:53.3]} 10... Bxf3 {[%clk 0:02:45.9]} 11. Bxf3
{[%clk 0:02:54.2]} 11... Qb5 {[%clk 0:02:45.7]} 12. Qe2 {[%clk 0:02:52.9]} 12...
Qxe2+ {[%clk 0:02:42.4]} 13. Kxe2 {[%clk 0:02:51.5]} 13... Bd6 {[%clk
0:02:42.4]} 14. Ne4 {[%clk 0:02:49.8]} 14... Nxe4 {[%clk 0:02:42.5]} 15. Bxe4
{[%clk 0:02:50.7]} 15... Nf6 {[%clk 0:02:42.6]} 16. Bf3 {[%clk 0:02:50.3]} 16...
O-O-O {[%clk 0:02:42]} 17. Re1 {[%clk 0:02:47.1]} 17... h6 {[%clk 0:02:37.4]}
18. Bd2 {[%clk 0:02:41.8]} 18... Rhe8 {[%clk 0:02:37.1]} 19. Kf1 {[%clk
0:02:41.1]} 19... Bc7 {[%clk 0:02:34]} 20. Rad1 {[%clk 0:02:38.9]} 20... Rd7
{[%clk 0:02:29.5]} 21. g3 {[%clk 0:02:37.1]} 21... Red8 {[%clk 0:02:27.8]} 22.
Bc1 {[%clk 0:02:31.3]} 22... Nd5 {[%clk 0:02:27.1]} 23. h4 {[%clk 0:02:30.5]}
23... Bd6 {[%clk 0:02:20.4]} 24. a3 {[%clk 0:02:27.4]} 24... Be7 {[%clk
0:02:20.3]} 25. Kg2 {[%clk 0:02:21.8]} 25... Bf6 {[%clk 0:02:20.4]} 26. Re2
{[%clk 0:02:09.9]} 26... Nb6 {[%clk 0:02:20.3]} 27. Rde1 {[%clk 0:02:08.6]}
27... Na4 {[%clk 0:02:18.7]} 28. Be4 {[%clk 0:02:04.6]} 28... a5 {[%clk
0:02:08.7]} 29. Bc2 {[%clk 0:02:00.5]} 29... Nb6 {[%clk 0:02:08.6]} 30. Be4
{[%clk 0:01:58.1]} 30... a4 {[%clk 0:02:08.1]} 31. h5 {[%clk 0:01:50.1]} 31...
Nc4 {[%clk 0:02:07.5]} 32. f4 {[%clk 0:01:47.1]} 32... Nd6 {[%clk 0:02:04.2]}
33. Bc2 {[%clk 0:01:46.2]} 33... b5 {[%clk 0:02:02.9]} 34. Kf3 {[%clk
0:01:45.1]} 34... Nb7 {[%clk 0:01:57.6]} 35. g4 {[%clk 0:01:44.7]} 35... c5
{[%clk 0:01:53.4]} 36. g5 {[%clk 0:01:33.4]} 36... cxd4 {[%clk 0:01:50.3]} 37.
gxf6 {[%clk 0:01:32.4]} 37... d3 {[%clk 0:01:50.2]} 38. Bxd3 {[%clk 0:01:31.4]}
38... Rxd3+ {[%clk 0:01:49.2]} 39. Re3 {[%clk 0:01:31.7]} 39... gxf6 {[%clk
0:01:48.9]} 40. Ke4 {[%clk 0:01:29.6]} 40... f5+ {[%clk 0:01:48.3]} 41. Kf3
{[%clk 0:01:29.5]} 41... Nc5 {[%clk 0:01:48]} 42. Re2 {[%clk 0:01:29.5]} 42...
Ne4 {[%clk 0:01:47.7]} 43. Kg2 {[%clk 0:01:27.1]} 43... Rxe3 {[%clk 0:01:43.2]}
44. Rxe3 {[%clk 0:01:26.9]} 44... Rd1 {[%clk 0:01:42.1]} 45. Rxe4 {[%clk
0:01:27.2]} 45... fxe4 {[%clk 0:01:41.4]} 0-1

[Event "*** Titled Tuesday Blitz"]
[Site "Chess.com"]
[Date "2020.11.03"]
[Round "1"]
[White "Iball95"]
[Black "Sofiia_Hryzlova"]
[Result "1-0"]
[WhiteElo "2609"]
[BlackElo "2296"]
[TimeControl "180+1"]
[EndTime "10:05:04 PST"]
[Termination "Iball95 won by resignation"]

1. d4 {[%clk 0:02:08.2]} 1... Nf6 {[%clk 0:02:57.9]} 2. Nc3 {[%clk 0:02:07.9]}
2... d6 {[%clk 0:02:56.3]} 3. e4 {[%clk 0:02:06.7]} 3... g6 {[%clk 0:02:48.8]}
4. Be3 {[%clk 0:02:04.9]} 4... Bg7 {[%clk 0:02:48.6]} 5. Qd2 {[%clk 0:02:04.3]}
5... c6 {[%clk 0:02:45.7]} 6. Bh6 {[%clk 0:01:58.3]} 6... Bxh6 {[%clk
0:02:39.6]} 7. Qxh6 {[%clk 0:01:59.2]} 7... Nbd7 {[%clk 0:02:38.5]} 8. Nf3
{[%clk 0:01:54.9]} 8... Qc7 {[%clk 0:02:36.7]} 9. Bc4 {[%clk 0:01:54.8]} 9... b5
{[%clk 0:02:32.4]} 10. Bb3 {[%clk 0:01:46.8]} 10... Nb6 {[%clk 0:02:18.7]} 11.
e5 {[%clk 0:01:45.1]} 11... dxe5 {[%clk 0:02:15.8]} 12. dxe5 {[%clk 0:01:46]}
12... Nfd5 {[%clk 0:02:15.6]} 13. Nxd5 {[%clk 0:01:43.6]} 13... cxd5 {[%clk
0:02:14]} 14. O-O {[%clk 0:01:39.7]} 14... Be6 {[%clk 0:02:06.6]} 15. Nd4 {[%clk
0:01:18.2]} 15... Qd7 {[%clk 0:01:58.2]} 16. Rfe1 {[%clk 0:01:06.8]} 16... O-O-O
{[%clk 0:01:53.6]} 17. Qd2 {[%clk 0:00:56.8]} 17... Kb7 {[%clk 0:01:47.9]} 18.
Qb4 {[%clk 0:00:50.2]} 18... a6 {[%clk 0:01:42.2]} 19. a4 {[%clk 0:00:49.4]}
19... bxa4 {[%clk 0:01:22.9]} 20. Bxa4 {[%clk 0:00:45.2]} 20... Qc7 {[%clk
0:01:22.2]} 21. Bc6+ {[%clk 0:00:43.7]} 21... Ka7 {[%clk 0:01:20.2]} 22. Rxa6+
{[%clk 0:00:41.3]} 22... Kxa6 {[%clk 0:01:18.9]} 23. Ra1+ {[%clk 0:00:38.8]} 1-0

[Event "*** Titled Tuesday Blitz"]
[Site "Chess.com"]
[Date "2020.11.03"]
[Round "1"]
[White "pedroholly22"]
[Black "machupichu10"]
[Result "0-1"]
[WhiteElo "2384"]
[BlackElo "2765"]
[TimeControl "180+1"]
[EndTime "10:05:07 PST"]
[Termination "machupichu10 won by resignation"]

1. e4 {[%clk 0:02:58.9]} 1... c6 {[%clk 0:02:58.7]} 2. d4 {[%clk 0:02:58.1]}
2... d5 {[%clk 0:02:59]} 3. e5 {[%clk 0:02:58.3]} 3... Bf5 {[%clk 0:02:59]} 4.
Nf3 {[%clk 0:02:56.6]} 4... e6 {[%clk 0:02:59]} 5. Be2 {[%clk 0:02:56.6]} 5...
Ne7 {[%clk 0:02:59.5]} 6. O-O {[%clk 0:02:56.4]} 6... Ng6 {[%clk 0:02:59.8]} 7.
Nbd2 {[%clk 0:02:55]} 7... Nf4 {[%clk 0:02:58]} 8. Nb3 {[%clk 0:02:53]} 8...
Nxe2+ {[%clk 0:02:58.1]} 9. Qxe2 {[%clk 0:02:52.4]} 9... Be7 {[%clk 0:02:57.2]}
10. Bf4 {[%clk 0:02:46.4]} 10... g5 {[%clk 0:02:50.4]} 11. Be3 {[%clk
0:02:44.9]} 11... Nd7 {[%clk 0:02:46.2]} 12. a4 {[%clk 0:02:42.6]} 12... h5
{[%clk 0:02:41.9]} 13. Nfd2 {[%clk 0:02:40.9]} 13... h4 {[%clk 0:02:33.3]} 14.
c4 {[%clk 0:02:38.4]} 14... Nb6 {[%clk 0:02:06.5]} 15. a5 {[%clk 0:02:25.1]}
15... Nxc4 {[%clk 0:02:06.3]} 16. Nxc4 {[%clk 0:02:24.3]} 16... dxc4 {[%clk
0:02:07.2]} 17. Qxc4 {[%clk 0:02:24.4]} 17... Qd5 {[%clk 0:01:41.8]} 18. Qxd5
{[%clk 0:02:21.9]} 18... exd5 {[%clk 0:01:42.7]} 19. Nc5 {[%clk 0:02:19]} 19...
Bxc5 {[%clk 0:01:42.5]} 20. dxc5 {[%clk 0:02:18.9]} 20... Kd7 {[%clk 0:01:41.5]}
21. Bd4 {[%clk 0:02:16.2]} 21... Ke6 {[%clk 0:01:38.9]} 22. b4 {[%clk
0:02:13.5]} 22... Bd3 {[%clk 0:01:29.2]} 23. Rfe1 {[%clk 0:02:13.3]} 23... g4
{[%clk 0:01:27.5]} 24. Re3 {[%clk 0:02:12.4]} 24... Bc4 {[%clk 0:01:27.3]} 25.
Rea3 {[%clk 0:02:02.5]} 25... Rag8 {[%clk 0:01:16.5]} 26. Re3 {[%clk 0:01:59.2]}
26... Rh5 {[%clk 0:01:16.5]} 27. Rae1 {[%clk 0:01:56.2]} 27... Rf5 {[%clk
0:01:16.6]} 28. g3 {[%clk 0:01:44.7]} 28... Rh8 {[%clk 0:01:14.1]} 29. Kg2
{[%clk 0:01:21.4]} 29... Bb5 {[%clk 0:01:08.4]} 30. Rh1 {[%clk 0:01:14.6]} 30...
h3+ {[%clk 0:01:04.9]} 31. Kg1 {[%clk 0:01:11.5]} 31... Rf3 {[%clk 0:01:05.3]}
0-1

[Event "*** Titled Tuesday Blitz"]
[Site "Chess.com"]
[Date "2020.11.03"]
[Round "1"]
[White "Susal_De_Silva"]
[Black "shaheus"]
[Result "1-0"]
[WhiteElo "2521"]
[BlackElo "2132"]
[TimeControl "180+1"]
[EndTime "10:05:13 PST"]
[Termination "Susal_De_Silva won by resignation"]

1. e4 {[%clk 0:03:00.9]} 1... d5 {[%clk 0:02:57.8]} 2. exd5 {[%clk 0:03:00]}
2... Nf6 {[%clk 0:02:58.1]} 3. Nc3 {[%clk 0:02:59.8]} 3... Nxd5 {[%clk
0:02:57.5]} 4. Bc4 {[%clk 0:02:58.3]} 4... c6 {[%clk 0:02:55.9]} 5. Nge2 {[%clk
0:02:57.7]} 5... g6 {[%clk 0:02:48.6]} 6. O-O {[%clk 0:02:57.6]} 6... Bg7 {[%clk
0:02:48.9]} 7. d4 {[%clk 0:02:56.4]} 7... O-O {[%clk 0:02:48.6]} 8. Bb3 {[%clk
0:02:55.4]} 8... a5 {[%clk 0:02:47.8]} 9. a3 {[%clk 0:02:52.9]} 9... Na6 {[%clk
0:02:44.5]} 10. Ne4 {[%clk 0:02:45.1]} 10... Re8 {[%clk 0:02:39.9]} 11. c4
{[%clk 0:02:44.7]} 11... Nf6 {[%clk 0:02:36.9]} 12. Nxf6+ {[%clk 0:02:43.2]}
12... Bxf6 {[%clk 0:02:36.4]} 13. Be3 {[%clk 0:02:44.1]} 13... Nc7 {[%clk
0:02:35.7]} 14. Qd2 {[%clk 0:02:42.1]} 14... Bf5 {[%clk 0:02:31.2]} 15. Ng3
{[%clk 0:02:41]} 15... Be6 {[%clk 0:02:27.7]} 16. Rad1 {[%clk 0:02:36.6]} 16...
a4 {[%clk 0:02:13]} 17. Ba2 {[%clk 0:02:35.6]} 17... b5 {[%clk 0:02:07.5]} 18.
d5 {[%clk 0:02:34.4]} 18... cxd5 {[%clk 0:02:04.1]} 19. cxd5 {[%clk 0:02:35.3]}
19... Bg4 {[%clk 0:02:00.1]} 20. f3 {[%clk 0:02:35.5]} 20... Bc8 {[%clk
0:01:56.7]} 21. Ne4 {[%clk 0:02:33.1]} 21... Bg7 {[%clk 0:01:55.6]} 22. Bb6
{[%clk 0:02:28.4]} 22... Rb8 {[%clk 0:01:43.7]} 23. Ba5 {[%clk 0:02:27.5]} 23...
Qd7 {[%clk 0:01:40.4]} 24. d6 {[%clk 0:02:23.9]} 24... Ne6 {[%clk 0:01:30.5]}
25. Bxe6 {[%clk 0:02:14.9]} 25... Qxe6 {[%clk 0:01:29.9]} 26. d7 {[%clk
0:02:12.4]} 26... Bxd7 {[%clk 0:01:27.4]} 27. Qxd7 {[%clk 0:02:13.3]} 27... Qxd7
{[%clk 0:01:25.6]} 28. Rxd7 {[%clk 0:02:14.2]} 28... Bxb2 {[%clk 0:01:25.7]} 29.
Bb4 {[%clk 0:02:14.4]} 29... Rbc8 {[%clk 0:01:08.8]} 30. Rb1 {[%clk 0:02:12.2]}
30... Be5 {[%clk 0:01:05.5]} 31. Bxe7 {[%clk 0:02:04.2]} 31... Rc2 {[%clk
0:01:00.5]} 32. Bf6 {[%clk 0:01:59.8]} 32... h5 {[%clk 0:00:38.3]} 33. Re1
{[%clk 0:01:53.5]} 33... Bd4+ {[%clk 0:00:29.7]} 34. Bxd4 {[%clk 0:01:51]} 1-0

[Event "*** Titled Tuesday Blitz"]
[Site "Chess.com"]
[Date "2020.11.03"]
[Round "1"]
[White "ArjunErigaisi2003"]
[Black "ehrenfeld"]
[Result "1-0"]
[WhiteElo "2984"]
[BlackElo "2465"]
[TimeControl "180+1"]
[EndTime "10:05:15 PST"]
[Termination "ArjunErigaisi2003 won on time"]

1. c4 {[%clk 0:03:00.5]} 1... e5 {[%clk 0:02:58.9]} 2. Nc3 {[%clk 0:02:59.8]}
2... d6 {[%clk 0:02:58.9]} 3. Nf3 {[%clk 0:02:58.7]} 3... f5 {[%clk 0:02:58.9]}
4. d3 {[%clk 0:02:56]} 4... Nf6 {[%clk 0:02:58.2]} 5. g3 {[%clk 0:02:55.9]} 5...
Be7 {[%clk 0:02:57.8]} 6. Bg2 {[%clk 0:02:55.6]} 6... O-O {[%clk 0:02:58.1]} 7.
O-O {[%clk 0:02:56.1]} 7... Qe8 {[%clk 0:02:57.2]} 8. b4 {[%clk 0:02:53.8]} 8...
Qh5 {[%clk 0:02:54.2]} 9. Bg5 {[%clk 0:02:50.5]} 9... Nbd7 {[%clk 0:02:49.9]}
10. Qb3 {[%clk 0:02:41.6]} 10... Kh8 {[%clk 0:02:48.3]} 11. Bd2 {[%clk 0:02:32]}
11... e4 {[%clk 0:02:29.8]} 12. dxe4 {[%clk 0:02:17.8]} 12... fxe4 {[%clk
0:02:28.8]} 13. Ng5 {[%clk 0:02:17.9]} 13... e3 {[%clk 0:01:54.4]} 14. Bxe3
{[%clk 0:02:06.1]} 14... Ng4 {[%clk 0:01:54.2]} 15. h4 {[%clk 0:02:04.8]} 15...
Nxe3 {[%clk 0:01:40.7]} 16. fxe3 {[%clk 0:02:05.7]} 16... Rxf1+ {[%clk 0:01:30]}
17. Rxf1 {[%clk 0:02:05.2]} 17... Bxg5 {[%clk 0:01:17.2]} 18. hxg5 {[%clk
0:02:05.9]} 18... Qxg5 {[%clk 0:01:16.1]} 19. Ne4 {[%clk 0:02:05.6]} 19... Qe7
{[%clk 0:01:11.2]} 20. c5 {[%clk 0:02:00.5]} 20... Ne5 {[%clk 0:00:40.4]} 21.
Qd5 {[%clk 0:02:00.5]} 21... Bd7 {[%clk 0:00:27.8]} 22. Qxb7 {[%clk 0:01:54.8]}
22... Bc6 {[%clk 0:00:25.4]} 23. cxd6 {[%clk 0:01:55.1]} 1-0

[Event "*** Titled Tuesday Blitz"]
[Site "Chess.com"]
[Date "2020.11.03"]
[Round "1"]
[White "Chessalary"]
[Black "Grandelicious"]
[Result "0-1"]
[WhiteElo "2395"]
[BlackElo "2793"]
[TimeControl "180+1"]
[EndTime "10:05:16 PST"]
[Termination "Grandelicious won by checkmate"]

1. d4 {[%clk 0:03:00.3]} 1... Nf6 {[%clk 0:02:59.4]} 2. Nf3 {[%clk 0:02:59.7]}
2... g6 {[%clk 0:02:59.5]} 3. e3 {[%clk 0:03:00]} 3... Bg7 {[%clk 0:02:59.7]} 4.
Be2 {[%clk 0:03:00.3]} 4... O-O {[%clk 0:02:59.6]} 5. O-O {[%clk 0:03:00.2]}
5... d6 {[%clk 0:02:59.2]} 6. Nbd2 {[%clk 0:03:00]} 6... c5 {[%clk 0:02:56.6]}
7. b3 {[%clk 0:03:00.4]} 7... cxd4 {[%clk 0:02:56.6]} 8. exd4 {[%clk 0:02:59.5]}
8... d5 {[%clk 0:02:53.2]} 9. Bb2 {[%clk 0:02:59.6]} 9... Nc6 {[%clk 0:02:54.1]}
10. c3 {[%clk 0:02:52.6]} 10... Bf5 {[%clk 0:02:53.2]} 11. Re1 {[%clk 0:02:51]}
11... Rc8 {[%clk 0:02:52.6]} 12. Bb5 {[%clk 0:02:50.7]} 12... Ne4 {[%clk
0:02:46.2]} 13. Nxe4 {[%clk 0:02:49.7]} 13... Bxe4 {[%clk 0:02:39]} 14. Nd2
{[%clk 0:02:45.7]} 14... Bf5 {[%clk 0:02:36.7]} 15. Qf3 {[%clk 0:02:39.1]} 15...
a6 {[%clk 0:02:33.1]} 16. Bd3 {[%clk 0:02:38.3]} 16... Bxd3 {[%clk 0:02:28.2]}
17. Qxd3 {[%clk 0:02:39.2]} 17... e5 {[%clk 0:02:22.2]} 18. dxe5 {[%clk
0:02:31.3]} 18... Nxe5 {[%clk 0:02:23.1]} 19. Qg3 {[%clk 0:02:30.1]} 19... Re8
{[%clk 0:02:21.8]} 20. Rad1 {[%clk 0:02:28.4]} 20... Qa5 {[%clk 0:01:59.8]} 21.
a4 {[%clk 0:02:20.4]} 21... Qb6 {[%clk 0:01:54.8]} 22. c4 {[%clk 0:02:11.2]}
22... d4 {[%clk 0:01:50.5]} 23. a5 {[%clk 0:01:57.9]} 23... Qxa5 {[%clk
0:01:43.1]} 24. Bxd4 {[%clk 0:01:55.8]} 24... Rcd8 {[%clk 0:01:40.1]} 25. Bc3
{[%clk 0:01:33.5]} 25... Nf3+ {[%clk 0:01:33.4]} 26. Nxf3 {[%clk 0:01:22.4]}
26... Qxc3 {[%clk 0:01:02.2]} 27. Rxd8 {[%clk 0:01:05.3]} 27... Rxd8 {[%clk
0:01:02]} 28. Ng5 {[%clk 0:01:04]} 28... Qxe1# {[%clk 0:01:01.3]} 0-1